bitfinex-derivatives/quotes_BNBF0:USTF0_20250510
["timestamp","ask_amount","ask_price","bid_price","bid_amount"]
[1746854314914,0.26419177,659.28,658.12,0.30389594]
[1746854315219,0.25038505,659.36,658.12,0.30389594]
[1746854315420,1.93745811,660.59,658.12,0.30389594]
[1746854315421,0.25038505,659.27,658.12,0.30389594]
[1746854315733,0.25038505,659.36,658.12,0.30389594]
[1746854315922,0.26419177,659.26,658.12,0.30389594]
[1746854316116,0.25038505,659.25,658.12,0.30389594]
[1746854316318,0.25038505,659.25,658.13,0.97566572]
[1746854316515,0.25038505,659.25,658.15,0.30388209]
[1746854316720,0.25038505,659.36,658.15,0.30388209]
[1746854317613,0.26419177,659.35,658.15,0.30388209]
[1746854318115,0.25038505,659.34,658.15,0.30388209]
[1746854320822,0.26419177,659.33,658.15,0.30388209]
[1746854321321,0.25038505,659.32,658.15,0.30388209]
[1746854323523,1.93745811,660.65,658.15,0.30388209]
[1746854323717,0.26417572,659.31,658.16,1.27660835]
[1746854323926,0.26417572,659.31,658.17,0.97282993]
[1746854324118,0.26417572,659.31,658.18,0.97282993]
[1746854324418,0.25033018,659.3,658.19,0.97282993]
[1746854324724,0.25033018,659.3,658.2,1.27660835]
[1746854324920,0.25033018,659.3,658.21,0.97282993]
[1746854325219,0.25033018,659.3,658.2,0.30377842]
[1746854325220,0.25033018,659.3,658.22,1.58045812]
[1746854325419,0.25033018,659.3,658.23,0.97282993]
[1746854325619,0.25033018,659.3,658.24,0.97282993]
[1746854325825,0.25033018,659.3,658.22,0.30384977]
[1746854326022,0.25033018,659.3,658.23,0.97236026]
[1746854326227,0.25033018,659.3,658.24,0.97236026]
[1746854326427,0.25033018,659.3,658.22,0.30384977]
[1746854326728,0.26413662,659.29,658.23,0.97247631]
[1746854326925,0.26413662,659.29,658.22,0.30384977]
[1746854326926,0.26413662,659.29,658.24,0.97247631]
[1746854327126,0.25033018,659.28,658.22,0.30384977]
[1746854327326,0.25033018,659.28,658.23,0.97233867]
[1746854327528,0.25033018,659.28,658.24,0.97233867]
[1746854327729,0.25033018,659.28,658.23,0.471]
[1746854327928,0.25033018,659.28,658.24,0.97175617]
[1746854328125,0.25033018,659.28,658.23,0.471]
[1746854328326,0.25033018,659.28,658.24,0.97156874]
[1746854328525,0.25033018,659.28,658.23,0.471]
[1746854328729,0.25033018,659.28,658.24,0.97156446]
[1746854328929,0.25033018,659.28,658.23,0.471]
[1746854329129,0.25033018,659.28,658.24,0.97157356]
[1746854329321,0.25033018,659.28,658.23,0.471]
[1746854329523,0.25033018,659.28,658.24,0.97141351]
[1746854329724,0.25033018,659.28,658.25,0.97141351]
[1746854329927,0.26413863,659.27,658.23,0.471]
[1746854330228,0.26413863,659.27,658.24,0.97130512]
[1746854330427,0.25033018,659.26,658.25,1.27505604]
[1746854330724,0.25033018,659.26,658.26,0.97114747]
[1746854330927,0.25033018,659.26,658.27,0.9711008]
[1746854331123,0.25033018,659.26,658.28,1.2747929]
[1746854331323,0.25033018,659.26,658.29,0.97106024]
[1746854331527,0.25033018,659.26,658.3,0.97106024]
[1746854331728,0.25033018,659.26,658.31,0.97106024]
[1746854331928,0.25033018,659.26,658.32,0.97106024]
[1746854332128,0.25033018,659.26,658.23,0.471]
[1746854332329,0.25033018,659.26,658.24,0.97064395]
[1746854332531,1.93745811,660.86,658.25,1.2743629]
[1746854332828,0.25027491,659.36,658.26,0.97064395]
[1746854333029,0.25027491,659.36,658.27,0.30371895]
[1746854333223,0.25027491,659.36,658.28,0.97064395]
[1746854333629,0.25027491,659.36,658.29,0.30371895]
[1746854333830,0.26413261,659.35,658.3,0.96928919]
[1746854334125,0.26413261,659.35,658.31,0.96928919]
[1746854334325,0.26413261,659.35,658.32,0.96928919]
[1746854334631,0.25027491,659.34,658.33,1.27299813]
[1746854334831,0.25027491,659.34,658.34,0.96928919]
[1746854335025,0.25027491,659.34,658.35,0.96922187]
[1746854335229,0.25027491,659.34,658.23,0.471]
[1746854335430,0.25027491,659.34,658.24,0.96929097]
[1746854335626,0.25027491,659.34,658.25,1.27299511]
[1746854335830,0.25027491,659.34,658.26,0.96929097]
[1746854336134,0.25027491,659.34,658.27,1.27299511]
[1746854336330,0.25027491,659.34,658.28,0.96929097]
[1746854336530,0.25027491,659.34,658.29,0.96929097]
[1746854336731,0.25027491,659.34,658.3,1.27299511]
[1746854336931,0.25027491,659.34,658.31,0.96929097]
[1746854337233,0.25027491,659.34,658.32,1.27299511]
[1746854337434,0.25027491,659.34,658.33,0.96929097]
[1746854337728,0.25027491,659.34,658.34,1.27299511]
[1746854337933,0.25027491,659.34,658.35,0.96929097]
[1746854338132,0.25027491,659.34,658.36,0.96929097]
[1746854338333,0.25027491,659.34,658.37,1.27299511]
[1746854338628,0.25027491,659.34,658.38,0.96929097]
[1746854338834,1.93745811,660.2,658.38,0.96929097]
[1746854338835,0.26409353,659.33,658.39,0.30370414]
[1746854339033,0.26409353,659.33,658.4,1.27299511]
[1746854339229,0.25027491,659.32,658.41,0.96941172]
[1746854339430,0.25027491,659.32,658.42,0.96941172]
[1746854339732,0.25027491,659.32,658.43,0.96941172]
[1746854339933,0.25027491,659.32,658.23,0.471]
[1746854340134,0.25027491,659.32,658.24,1.52802626]
[1746854340331,0.25027491,659.32,658.23,0.471]
[1746854340332,0.26409353,659.33,658.25,1.83169724]
[1746854340533,0.26409353,659.33,658.26,1.52802626]
[1746854340733,0.26409353,659.33,658.27,0.96970188]
[1746854340934,0.25023298,659.32,658.28,1.83170908]
[1746854341131,0.25023298,659.32,658.29,1.27337286]
[1746854341334,0.25023298,659.32,658.3,0.96970188]
[1746854341534,0.25023298,659.32,658.31,0.96970188]
[1746854341731,0.26409854,659.31,658.32,1.27337286]
[1746854341931,0.26409854,659.31,658.33,0.96970188]
[1746854342136,0.25023298,659.3,658.34,0.96970188]
[1746854342336,0.25023298,659.3,658.35,1.83168415]
[1746854342635,0.26409854,659.31,658.36,1.52801317]
[1746854342830,0.26409854,659.31,658.37,1.52801317]
[1746854343030,0.26409854,659.31,658.38,1.83168415]
[1746854343234,0.26409854,659.31,658.39,1.52801317]
[1746854343431,0.26409854,659.31,658.38,0.30367098]
[1746854343432,0.26409854,659.31,658.4,1.52801317]
[1746854343635,0.26409854,659.31,658.41,1.27337286]
[1746854343836,0.26409854,659.31,658.42,0.96976766]
[1746854344033,0.26409854,659.31,658.43,0.96976766]
[1746854344237,0.26409854,659.31,658.44,0.96976766]
[1746854344436,1.93745811,660.58,658.45,1.27343864]
[1746854344638,1.93745811,660.58,658.46,0.96976766]
[1746854344837,0.26406246,659.33,658.47,1.27343864]
[1746854345038,0.26406246,659.33,658.48,0.96976766]
[1746854345439,0.26406246,659.33,658.49,0.30367098]
[1746854345933,0.26406246,659.33,658.5,0.30367098]
[1746854346140,0.26406246,659.33,658.51,0.96903725]
[1746854346341,0.26406246,659.33,658.52,0.96903725]
[1746854346541,0.26406246,659.33,658.53,0.96903725]
[1746854346741,0.26406246,659.33,658.54,1.27270823]
[1746854346942,0.26406246,659.33,658.55,0.96903725]
[1746854347137,0.26406246,659.33,658.29,0.26406246]
[1746854347338,0.26406246,659.33,658.3,1.83180498]
[1746854347542,0.26406246,659.33,658.31,0.96934627]
[1746854347742,0.25022764,659.32,658.32,0.96934627]
[1746854347937,0.25022764,659.32,658.33,0.96934627]
[1746854348242,0.25022764,659.32,658.34,0.3036285]
[1746854348442,0.25022764,659.32,658.35,0.96934627]
[1746854349138,0.25022764,659.32,658.34,0.3036285]
[1746854349341,0.25022764,659.32,658.35,1.27281317]
[1746854349542,0.25022764,659.32,658.36,0.96918467]
[1746854349843,0.25022764,659.32,658.37,1.27281317]
[1746854350044,0.25022764,659.32,658.38,0.96918467]
[1746854350241,0.25022764,659.32,658.39,0.96918467]
[1746854350545,0.25022764,659.32,658.4,1.27281317]
[1746854350745,0.25022764,659.32,658.41,0.96918467]
[1746854351046,0.26407749,659.31,658.42,1.27176099]
[1746854351347,0.26407749,659.31,658.43,1.27176099]
[1746854351547,0.26407749,659.31,658.44,0.96813249]
[1746854351741,0.25022764,659.3,658.45,0.96813249]
[1746854351941,0.25022764,659.3,658.46,0.96813249]
[1746854352141,0.25022764,659.3,658.45,0.3036285]
[1746854352847,0.25022764,659.3,658.46,0.96847958]
[1746854353047,0.25022764,659.3,658.47,0.9684625]
[1746854353643,0.25022764,659.3,658.49,0.30372518]
[1746854353948,0.25022764,659.36,658.49,0.30372518]
[1746854355454,0.25022764,659.36,658.5,0.615]
[1746854356449,0.25022764,659.36,658.52,0.30371135]
[1746854367260,1.93745811,660.46,658.52,0.30371135]
[1746854367561,0.25023755,659.35,658.52,0.30371135]
[1746854368060,0.25023755,659.36,658.52,0.30371135]
[1746854368260,0.25023755,659.34,658.52,0.30371135]
[1746854368959,0.25023755,659.36,658.52,0.30371135]
[1746854370061,0.25023755,659.36,658.53,0.51]
[1746854370262,0.25023755,659.36,658.55,0.30369751]
[1746854370462,1.93745811,660.31,658.55,0.30369751]
[1746854370761,0.25023911,659.36,658.55,0.30369751]
[1746854380766,0.25023911,659.35,658.55,0.30369751]
[1746854381063,1.93745811,660.04,658.55,0.30369751]
[1746854381064,0.25023911,659.36,658.55,0.30369751]
[1746854381462,0.25023911,659.35,658.55,0.30369751]
[1746854381867,0.25023911,659.34,658.55,0.30369751]
[1746854382368,0.25023911,659.33,658.55,0.30369751]
[1746854382668,0.25023911,659.32,658.55,0.30369751]
[1746854382964,0.25023911,659.31,658.55,0.30369751]
[1746854383268,0.25023911,659.3,658.55,0.30369751]
[1746854383668,0.25023911,659.36,658.55,0.30369751]
[1746854383968,0.25023911,659.35,658.55,0.30369751]
[1746854384370,0.25023911,659.34,658.55,0.30369751]
[1746854384971,0.25023911,659.36,658.55,0.30369751]
[1746854385269,1.93745811,659.87,658.55,0.30369751]
[1746854385871,0.25021115,659.36,658.55,0.30369751]
[1746854386262,0.25021115,659.35,658.55,0.30369751]
[1746854386569,0.25021115,659.34,658.55,0.30369751]
[1746854386869,0.25021115,659.33,658.55,0.30369751]
[1746854387364,0.25021115,659.32,658.55,0.30369751]
[1746854387669,0.25021115,659.31,658.55,0.30369751]
[1746854387968,0.25021115,659.3,658.55,0.30369751]
[1746854388364,0.25021115,659.29,658.55,0.30369751]
[1746854388769,0.25021115,659.28,658.55,0.30369751]
[1746854389470,0.25021115,659.27,658.55,0.30369751]
[1746854389870,0.25021115,659.26,658.55,0.30369751]
[1746854390266,0.25021115,659.25,658.55,0.30369751]
[1746854390471,0.25021115,659.24,658.55,0.30369751]
[1746854391071,0.25021115,659.23,658.55,0.30369751]
[1746854391471,0.25021115,659.22,658.55,0.30369751]
[1746854391771,0.25021115,659.21,658.55,0.30369751]
[1746854392072,0.25021115,659.2,658.55,0.30369751]
[1746854392372,0.25021115,659.36,658.55,0.30369751]
[1746854392573,1.93745811,659.8,658.55,0.30369751]
[1746854392875,0.25030229,659.36,658.55,0.30369751]
[1746854393670,0.25030229,659.35,658.55,0.30369751]
[1746854393974,0.25030229,659.34,658.55,0.30369751]
[1746854394376,0.25030229,659.33,658.55,0.30369751]
[1746854394776,0.25030229,659.32,658.55,0.30369751]
[1746854395170,0.25030229,659.31,658.55,0.30369751]
[1746854395576,0.25030229,659.3,658.55,0.30369751]
[1746854395976,0.25030229,659.29,658.55,0.30369751]
[1746854396276,0.25030229,659.28,658.55,0.30369751]
[1746854397173,0.25030229,659.27,658.55,0.30369751]
[1746854397373,0.25030229,659.26,658.55,0.30369751]
[1746854397571,0.25030229,659.26,658.53,0.51]
[1746854397871,0.25030229,659.26,658.4,0.477]
[1746854398075,0.25030229,659.25,658.4,0.477]
[1746854398277,0.25030229,659.24,658.4,0.477]
[1746854398676,0.25030229,659.23,658.4,0.477]
[1746854399480,0.25030229,659.22,658.4,0.477]
[1746854399977,0.25030229,659.21,658.4,0.477]
[1746854400379,0.25030229,659.2,658.41,0.372]
[1746854400779,0.25030229,659.19,658.41,0.372]
[1746854401277,0.25030229,659.18,658.41,0.372]
[1746854401578,0.25030229,659.17,658.41,0.372]
[1746854401877,0.25030229,659.16,658.41,0.372]
[1746854402378,0.25030229,659.15,658.41,0.372]
[1746854402683,0.25030229,659.14,658.41,0.372]
[1746854403175,0.25030229,659.13,658.41,0.372]
[1746854403582,0.25030229,659.12,658.41,0.372]
[1746854403979,0.25030229,659.11,658.41,0.372]
[1746854404378,0.25030229,659.1,658.41,0.372]
[1746854404679,0.25030229,659.09,658.41,0.372]
[1746854405178,0.25030229,659.08,658.41,0.372]
[1746854405478,0.25030229,659.07,658.41,0.372]
[1746854406078,0.25030229,659.06,658.41,0.372]
[1746854406280,0.25030229,659.05,658.41,0.372]
[1746854406679,1.93745811,659.47,658.41,0.372]
[1746854406877,0.55337864,659.36,658.41,0.372]
[1746854407279,0.25005421,659.35,658.41,0.372]
[1746854407679,0.25005421,659.34,658.41,0.372]
[1746854408075,0.25005421,659.33,658.41,0.372]
[1746854408280,1.93745811,659.25,658.41,0.372]
[1746854408880,0.25005421,659.24,658.41,0.372]
[1746854409179,0.25005421,659.23,658.41,0.372]
[1746854409575,0.25005421,659.22,658.41,0.372]
[1746854410079,0.25005421,659.21,658.41,0.372]
[1746854410481,0.25005421,659.2,658.41,0.372]
[1746854411078,0.25005421,659.19,658.41,0.372]
[1746854411386,1.93745811,659.17,658.41,0.372]
[1746854412185,0.25005421,659.16,658.41,0.372]
[1746854412385,0.25005421,659.15,658.41,0.372]
[1746854412785,0.25005421,659.14,658.41,0.372]
[1746854413086,0.25005421,659.13,658.41,0.372]
[1746854413383,0.25005421,659.13,658.4,0.477]
[1746854413587,0.25005421,659.12,658.4,0.477]
[1746854413888,0.25005421,659.11,658.4,0.477]
[1746854414387,0.25005421,659.1,658.4,0.477]
[1746854414586,0.25005421,659.09,658.4,0.477]
[1746854414990,0.25005421,659.08,658.4,0.477]
[1746854415590,0.25005421,659.07,658.4,0.477]
[1746854415890,0.25005421,659.06,658.4,0.477]
[1746854416493,0.25005421,659.05,658.4,0.477]
[1746854416792,0.25005421,659.04,658.4,0.477]
[1746854417087,0.25005421,659.03,658.4,0.477]
[1746854417391,0.25005421,659.02,658.4,0.477]
[1746854417792,0.25005421,659.01,658.4,0.477]
[1746854418188,0.25005421,659.0,658.4,0.477]
[1746854418595,1.93745811,659.05,658.4,0.477]
[1746854418996,0.24985787,659.04,658.4,0.477]
[1746854419290,0.24985787,659.03,658.4,0.477]
[1746854419695,0.24985787,659.02,658.4,0.477]
[1746854420096,0.24985787,659.01,658.4,0.477]
[1746854420396,0.24985787,659.0,658.4,0.477]
[1746854420692,0.24985787,658.99,658.4,0.477]
[1746854421196,0.24985787,658.98,658.4,0.477]
[1746854421591,0.24985787,658.97,658.4,0.477]
[1746854422096,0.24985787,658.96,658.4,0.477]
[1746854422496,0.24985787,658.95,658.4,0.477]
[1746854422996,0.24985787,658.94,658.4,0.477]
[1746854423197,0.51416903,658.94,658.4,0.477]
[1746854423497,0.26431116,658.94,658.4,0.477]
[1746854423897,0.24980363,658.93,658.4,0.477]
[1746854426895,0.24980363,658.92,658.4,0.477]
[1746854427200,0.24980363,658.91,658.4,0.477]
[1746854427601,0.24980363,658.9,658.4,0.477]
[1746854427900,0.24980363,658.89,658.4,0.477]
[1746854428300,0.24980363,658.88,658.4,0.477]
[1746854428802,0.5141429,658.87,658.4,0.477]
[1746854429099,0.24980363,658.86,658.4,0.477]
[1746854429394,0.24980363,658.85,658.4,0.477]
[1746854429801,0.24980363,658.84,658.4,0.477]
[1746854430193,0.24980363,658.83,658.4,0.477]
[1746854430397,0.24980363,658.82,658.4,0.477]
[1746854430696,0.24980363,658.81,658.4,0.477]
[1746854431101,0.24980363,658.8,658.4,0.477]
[1746854431496,0.24980363,658.79,658.4,0.477]
[1746854431695,0.51417201,658.79,658.4,0.477]
[1746854431896,0.24980363,658.78,658.4,0.477]
[1746854432506,1.93745811,658.65,658.4,0.477]
[1746854433503,0.24980363,658.64,658.4,0.477]
[1746854434004,0.24980363,658.64,658.33,0.481]
[1746854435105,0.24980363,658.63,658.33,0.481]
[1746854435499,0.24980363,658.64,658.33,0.481]
[1746854435804,0.26438445,658.62,658.33,0.481]
[1746854436305,1.93745811,658.61,658.33,0.481]
[1746854436504,2.18726174,658.61,658.33,0.481]
[1746854436900,0.24980363,658.6,658.33,0.481]
[1746854437808,0.26436939,658.59,658.33,0.481]
[1746854438406,0.2496218,658.58,658.33,0.481]
[1746854440409,0.2496218,658.58,658.2,0.431]
[1746854442513,0.2496218,658.58,658.21,0.579]
[1746854443212,0.26436939,658.59,658.21,0.579]
[1746854443613,0.24962192,658.58,658.21,0.579]
[1746854444012,0.24962192,659.35,658.21,0.579]
[1746854444210,0.24962192,659.34,658.21,0.579]
[1746854444613,0.24962192,659.33,658.21,0.579]
[1746854445014,0.24962192,659.32,658.21,0.579]
[1746854445412,0.24962192,659.31,658.21,0.579]
[1746854445712,0.24962192,659.3,658.21,0.579]
[1746854446010,0.24962192,659.29,658.21,0.579]
[1746854446315,0.24962192,659.28,658.21,0.579]
[1746854446515,1.93745811,659.6,658.21,0.579]
[1746854446915,0.24969471,659.36,658.21,0.579]
[1746854447315,0.24969471,659.35,658.21,0.579]
[1746854447617,0.24969471,659.34,658.21,0.579]
[1746854448117,0.24969471,659.33,658.21,0.579]
[1746854448419,0.24969471,659.32,658.21,0.579]
[1746854448717,1.93745811,659.38,658.21,0.579]
[1746854449018,0.24979206,659.36,658.21,0.579]
[1746854449517,0.24979206,659.35,658.21,0.579]
[1746854449913,0.24979206,659.34,658.21,0.579]
[1746854450318,0.24979206,659.33,658.21,0.579]
[1746854450718,0.24979206,659.32,658.21,0.579]
[1746854451117,1.93745811,659.45,658.21,0.579]
[1746854451118,0.24979206,659.31,658.21,0.579]
[1746854451513,0.24979206,659.3,658.21,0.579]
[1746854451918,0.24979206,659.29,658.21,0.579]
[1746854452218,0.24979206,659.28,658.21,0.579]
[1746854452517,0.24979206,659.27,658.21,0.579]
[1746854453118,0.24979206,659.26,658.21,0.579]
[1746854454019,0.24979206,659.25,658.21,0.579]
[1746854454420,0.24979206,659.24,658.21,0.579]
[1746854454719,0.24979206,659.23,658.21,0.579]
[1746854454917,0.51400589,659.23,658.21,0.579]
[1746854455121,0.26421383,659.23,658.21,0.579]
[1746854455423,0.24979206,659.36,658.21,0.579]
[1746854455618,0.24979206,659.22,658.21,0.579]
[1746854455824,0.24979206,659.36,658.21,0.579]
[1746854456122,0.26419578,659.21,658.21,0.579]
[1746854456423,0.24979206,659.36,658.21,0.579]
[1746854457224,0.26419578,659.35,658.21,0.579]
[1746854457723,0.24979206,659.34,658.21,0.579]
[1746854458923,0.51396778,659.33,658.21,0.579]
[1746854460025,0.24979206,659.32,658.21,0.579]
[1746854460325,0.24979206,659.31,658.21,0.579]
[1746854460727,0.24979206,659.3,658.21,0.579]
[1746854461027,0.24979206,659.29,658.21,0.579]
[1746854461326,0.24979206,659.28,658.21,0.579]
[1746854461629,0.24979206,659.32,658.21,0.579]
[1746854461828,0.26417171,659.27,658.21,0.579]
[1746854462327,0.24979206,659.26,658.21,0.579]
[1746854464825,0.24979206,659.36,658.21,0.579]
[1746854465024,0.26414965,659.25,658.21,0.579]
[1746854465627,0.24979206,659.24,658.21,0.579]
[1746854467927,0.24979206,659.36,658.22,0.564]
[1746854468124,0.26414765,659.23,658.22,0.564]
[1746854468322,0.24979206,659.36,658.22,0.564]
[1746854469229,0.26414665,659.35,658.22,0.564]
[1746854469627,0.24979206,659.34,658.22,0.564]
[1746854470230,0.24979206,659.34,658.23,0.96401913]
[1746854470526,0.24979206,659.34,658.24,0.96401913]
[1746854470729,0.24979206,659.34,658.22,0.564]
[1746854470925,0.24979206,659.34,658.23,0.96346278]
[1746854471123,0.24979206,659.34,658.24,0.96346278]
[1746854471327,0.24979206,659.34,658.25,0.96346278]
[1746854471527,0.24979206,659.34,658.26,0.96346278]
[1746854471727,0.24979206,659.34,658.27,0.96287664]
[1746854472029,0.24979206,659.34,658.22,0.564]
[1746854472229,0.24979206,659.34,658.23,0.96287809]
[1746854472428,0.24979206,659.34,658.24,0.96287809]
[1746854472630,0.24979206,659.34,658.25,0.96287809]
[1746854472929,0.24979206,659.34,658.26,0.96287809]
[1746854473129,0.24979206,659.34,658.27,0.96287809]
[1746854473331,0.24979206,659.34,658.22,0.564]
[1746854473531,0.24979206,659.34,658.23,0.96194493]
[1746854473724,0.24979206,659.34,658.24,0.96194493]
[1746854473924,0.26411658,659.33,658.25,0.96194493]
[1746854474127,0.26411658,659.33,658.26,0.96194493]
[1746854474328,0.26411658,659.33,658.22,0.564]
[1746854474625,0.24979206,659.32,658.23,0.96156675]
[1746854474826,0.24979206,659.32,658.24,0.96156675]
[1746854475028,0.24979206,659.32,658.22,0.564]
[1746854475230,0.24979206,659.32,658.23,0.9616007]
[1746854475434,0.24979206,659.32,658.24,0.9616007]
[1746854475630,0.24979206,659.32,658.22,0.564]
[1746854475826,0.24979206,659.32,658.23,0.96128289]
[1746854476027,0.24979206,659.32,658.24,0.96128289]
[1746854476227,0.24979206,659.32,658.22,0.564]
[1746854476428,0.24979206,659.32,658.23,0.96105383]
[1746854476629,0.24979206,659.32,658.24,0.96105383]
[1746854476831,0.26411557,659.31,658.25,0.96105383]
[1746854477032,0.24979206,659.3,658.26,0.96105383]
[1746854477229,0.24979206,659.3,658.22,0.564]
[1746854477533,0.24979206,659.3,658.23,0.96100495]
[1746854477829,0.24979206,659.3,658.24,0.96100495]
[1746854478033,0.24979206,659.3,658.25,0.96080206]
[1746854478234,0.24979206,659.3,658.26,0.96080206]
[1746854478429,0.24979206,659.3,658.22,0.564]
[1746854478728,0.24979206,659.3,658.23,0.96057892]
[1746854478933,0.24979206,659.3,658.24,0.96057892]
[1746854479229,0.24979206,659.3,658.25,0.96057899]
[1746854479436,0.24979206,659.3,658.26,0.96057899]
[1746854479637,0.24979206,659.3,658.22,0.564]
[1746854479835,0.24979206,659.3,658.23,0.96038359]
[1746854480032,0.24979206,659.3,658.22,0.564]
[1746854480033,0.24979206,659.3,658.24,0.96038359]
[1746854480232,0.24979206,659.3,658.25,0.96038359]
[1746854480430,0.24979206,659.3,658.26,0.96038359]
[1746854480634,0.24979206,659.3,658.27,0.96038359]
[1746854480834,0.24979206,659.3,658.22,0.564]
[1746854481134,0.24979206,659.3,658.23,0.96019391]
[1746854481329,0.24979206,659.3,658.24,0.96019391]
[1746854481531,0.24979206,659.3,658.25,0.96019391]
[1746854481734,0.24979206,659.3,658.26,0.96019391]
[1746854481935,0.24979206,659.3,658.27,0.9600411]
[1746854482131,0.24979206,659.3,658.22,0.564]
[1746854482330,0.24979206,659.3,658.23,0.96003805]
[1746854482635,0.24979206,659.3,658.24,0.96003805]
[1746854482831,0.26411557,659.29,658.25,0.95991283]
[1746854483038,0.26411557,659.29,658.26,0.95991283]
[1746854483245,0.24979206,659.28,658.26,0.494]
[1746854483738,0.26411557,659.29,658.26,0.494]
[1746854484041,0.249939,659.28,658.26,0.494]
[1746854485941,0.26414264,659.27,658.26,0.494]
[1746854486541,0.249939,659.26,658.26,0.494]
[1746854488842,0.26414264,659.25,658.26,0.494]
[1746854489237,0.249939,659.24,658.26,0.494]
[1746854491444,1.93745811,659.95,658.26,0.494]
[1746854491745,0.2498442,659.36,658.26,0.494]
[1746854492044,0.51392871,659.36,658.26,0.494]
[1746854492446,0.2498442,659.35,658.26,0.494]
[1746854494544,0.2498442,659.35,658.27,0.9619637]
[1746854494745,0.2498442,659.35,658.28,0.9619637]
[1746854494942,0.2498442,659.35,658.29,0.9619637]
[1746854495141,0.2498442,659.35,658.3,0.96194952]
[1746854495342,0.2498442,659.35,658.31,0.96194952]
[1746854495543,0.2498442,659.35,658.32,0.96194952]
[1746854495743,0.2498442,659.35,658.26,0.494]
[1746854495946,0.2498442,659.35,658.27,0.96223889]
[1746854496239,0.2498442,659.35,658.28,1.26595435]
[1746854496443,0.2498442,659.35,658.29,0.96223889]
[1746854496746,0.2498442,659.35,658.3,1.26595435]
[1746854496944,0.2498442,659.35,658.31,0.96223889]
[1746854497246,0.2498442,659.35,658.32,0.30371546]
[1746854497443,0.2498442,659.35,658.33,0.96223889]
[1746854497744,0.2498442,659.35,658.34,0.30371546]
[1746854497944,0.2498442,659.35,658.35,0.96223889]
[1746854498145,0.26410154,659.34,658.35,0.96223889]
[1746854498340,0.26410154,659.34,658.36,0.96223889]
[1746854498544,0.2498442,659.33,658.22,0.564]
[1746854498741,0.2498442,659.33,658.23,0.96305452]
[1746854498942,0.2498442,659.33,658.24,1.26676545]
[1746854499145,0.2498442,659.33,658.25,0.96305452]
[1746854499443,0.2498442,659.33,658.26,0.96305452]
[1746854499646,0.2498442,659.33,658.27,0.96305452]
[1746854499846,0.2498442,659.33,658.28,0.96305452]
[1746854500046,0.2498442,659.33,658.29,0.96305452]
[1746854500244,0.2498442,659.33,658.29,1.26676545]
[1746854500548,0.2498442,659.33,658.3,1.26676545]
[1746854500747,0.2498442,659.33,658.31,0.96305452]
[1746854500943,0.26410555,659.32,658.32,0.30371093]
[1746854501146,0.26410555,659.32,658.33,0.96305452]
[1746854501347,0.2498442,659.31,658.33,0.96305452]
[1746854501548,0.2498442,659.31,658.34,0.30371093]
[1746854501747,0.2498442,659.31,658.35,0.96305452]
[1746854502245,0.2498442,659.31,658.34,0.30371093]
[1746854502450,0.2498442,659.31,658.28,0.443]
[1746854502745,0.2498442,659.31,658.29,0.96477375]
[1746854502948,0.2498442,659.31,658.3,1.26848692]
[1746854503146,0.2498442,659.31,658.31,0.96477375]
[1746854503445,0.2498442,659.31,658.32,0.30371317]
[1746854503646,0.2498442,659.31,658.33,0.96477375]
[1746854503845,0.26411958,659.3,658.33,0.96477375]
[1746854504248,0.2498442,659.29,658.33,0.96477375]
[1746854504447,0.2498442,659.29,658.34,0.96477375]
[1746854504649,0.2498442,659.29,658.35,0.96477375]
[1746854504846,0.2498442,659.29,658.28,0.443]
[1746854505049,0.2498442,659.29,658.29,1.26963434]
[1746854505349,0.2498442,659.29,658.3,0.96592324]
[1746854505548,0.2498442,659.29,658.31,0.3037111]
[1746854505748,0.2498442,659.29,658.32,0.96592324]
[1746854505947,0.2498442,659.29,658.33,0.3037111]
[1746854506146,0.2498442,659.29,658.34,0.96592324]
[1746854506553,0.2498442,659.29,658.28,0.443]
[1746854506751,0.2498442,659.29,658.29,0.96646334]
[1746854506951,0.2498442,659.29,658.3,1.27017908]
[1746854507152,0.2498442,659.29,658.31,0.96646334]
[1746854507352,0.2498442,659.29,658.32,0.96646334]
[1746854507551,0.2498442,659.29,658.33,1.27017908]
[1746854507849,0.26411958,659.3,658.34,0.96646334]
[1746854508056,0.24989781,659.29,658.35,0.30371574]
[1746854508452,0.24989781,659.29,658.28,0.443]
[1746854508748,0.24989781,659.29,658.29,0.96725314]
[1746854508951,0.24989781,659.29,658.29,0.30371616]
[1746854509357,0.24989781,659.29,658.28,0.443]
[1746854509557,0.24989781,659.29,658.29,0.96777828]
[1746854509856,0.26414063,659.28,658.28,0.443]